{"text_format":"3","workbook":"xlsx","n_sheets":4,"sheets":["Лист1","Лист2","Лист3","Лист4"],"read":"whole","date_system":"1900"}

{"sheet":"Лист1","index":0,"n_rows":29,"n_cols":30,"rows_kept":29,"merged":[[1,24,1,27]]}
[null,"                                                                                                                                 Количественные  показатели  по итогам  3 четверти 2021-2021 учг"]
[null,"Проведено  классных  часов  по тематике:",{"$nulls":8},"Проведено  мероприятий  по направлениям",{"$nulls":8},"                                           родительские собрания "]
[{"$nulls":19},"по прогр \"Путь к успеху\"",null,null,"профилактика правонаруш",null,null,"профилактика ДДТТ"]
[null,"патриотическая ","милосердие","экологическая","безопасность в сети интернет","пропаганда ЗОЖ, антинаркотич ","прпаганда семейных  ценностей","антитеррор","пожарная безопасность","дорожная безопасность","патриотическая ","милосердие","экологическая","безопасность в сети интернет","пропаганда ЗОЖ, антинаркотич ","прпаганда семейных  ценностей","антитеррор","пожарная безопасность","дорожная безопасность","количество собраний","количество родителей,          принявших  участие","ФИО приглашенных специалистов","количество собраний","количество родителей,          принявших  участие","ФИО приглашенных специалистов","количество собраний","количество родителей,          принявших  участие","ФИО приглашенных специалистов","количество обращений в ШСП","Количество примирительных договоров"]
["Школа"]
["СОШ №1 г.Азнакаево",36,27,22,29,33,24,20,34,15,14,13,11,8,12,9,9,10,23,26,465,"инспектор ОПДН Хисамутдинов И.А., педагог-психолог  Шарипова Э.А., Директор АПТ г.Азнакаево Хуснутдинов Р.А.",8,17,"Педагого-психолог Шарипова Э.А., муниципальный служащий -инспектор ОПДН Сультеева И.В.",26,465,0,0,0]
["СОШ №2 г.Азнакаево",39,26,16,22,30,21,18,32,14,23,12,11,15,12,6,2,8,12,25,579,"Султеева И.В, инспектор ПНД; Давлетшина Г.Х., старший помощник прокурора; Хузин Р.М., деп.Совета; Хадеев Т.Г. ",9,203,0,7,152,0,0,0]
["СОШ №3 г.Азнакаево",51,17,17,34,34,17,17,17,4,2,1,3,4,3,5,1,1,4,3,355,0,3,355,"Сультеева И.В",3,355,"Сагдатуллина А.Р",0,0]
["Лицей №4 г.Азнакаево",1,1,1,1,1,1,1,1,1,1,1,1,1,1,1,1,1,1,1,523,0,1,523,0,1,523,0,0,0]
["СОШ №5 г.Азнакаево"]
["СОШ №6  г.Азнакаево"]
["СОШ №7 г.Азнакаево",6,2,1,1,1,1,1,1,1,8,1,1,1,1,1,1,1,1,27,663,"социальный педагог Сувлейманова З.Т.были приглашены сотрудники ПДН, ГИБДДД,МЧС- не пришли",27,663,null,27,663,null,0,0]
["СОШ №8 г.Азнакаево",31,22,17,20,26,15,11,18,13,24,11,13,8,16,18,5,6,6,16,351,"Хуснутдинова Р.А.",4,64,"Сультеева И.В.",5,92,null,2]
["СОШ №9 г.Азнакаево",5,7,8,2,18,13,6,4,1,1,1,1,0,2,2,0,1,1,{"$nulls":9},1]
["Гимназия г.Азнакаево",20,40,20,20,20,35,10,15,4,7,4,3,1,5,4,2,1,null,20,441,"Хамидуллина И.М. фельдшер",1,440,"Сультеева И.В. Муниципальный инспектор",1,440,"Сагдатуллина А.Р. Инсректор БДД"]
["СОШ №1 пгт.Актюбинский",40,8,12,1,1,1,1,8,20,20,1,1,1,8,3,1,2,3,2,401,"Ибаев А.А. участковый, Повадырева Л.А. соцпедагог",5,14,"Иванова Р.В.инспектор ПДН,Ибаев А. А.участковый, Повадырева Л.А. соцпедагог,Габдрахманова Ф.М. психолог",20,401,"руководитель ЮИД",2,2]
["СОШ №2 пгт.Актюбинский",52,26,null,26,26,10,26,26,11,2,1,1,1,4,2,3,1,1,3,130,"Калбанова Е.А.",3,130,null,3,130,null,0,0]
["СОШ №3 пгт.Актюбинский"]
["СОШ п.Победа"]
["СОШ с.Какре Елга",10,7,3,2,10,8,2,10,3,10,3,2,2,4,5,1,1,1,1,38,"фельдшер с.Какре-Елга Сахватшина З.М.",1,38,0,1,38,0,0,0]
["СОШ с.Сарлы",30,23,16,22,22,21,11,22,14,14,11,10,7,14,8,6,14,12,1,50,"Сулейманова - соц.педагого ППС Гармония",1,50,"Шакирова Р.Р- ПДН",1,50,"Гатиятова А.З- руководитель отряда ЮИД",0,0]
["СОШ с.Тумутук",9,2,2,1,2,1,1,1,2,4,1,1,1,1,1,null,1,1,1,73,0,1,73,null,1,73,null,0,0]
["СОШ с.Урманаево"]
["СОШ с.Урсаево",20,10,10,10,10,10,20,20,2,12,2,3,2,4,1,2,3,3,3,37,"Низамиева Г.Р., медсестра ФАП с.Урсаево",1,35,"Султеева И.В., специалист ОПОП",1,35,0,0,0]
["СОШ с. Чалпы",78,78,26,26,39,26,39,39,12,12,17,13,13,37,39,13,26,26,36,62,"Мухаметшин Альянус Мияссарович- Глава Чалпинского СП. Хакимова Эльмира Хазиевна- медсестра ФАП с.Чалпы. Гаффарова Рузалия Масгутовна- медсестра ФАП с.Чалпы ",12,62,"Мухаметшин Альянус Мияссарович- Глава Чалпинского СП. Хакимова Эльмира Хазиевна- медсестра ФАП с.Чалпы. Гаффарова Рузалия Масгутовна- медсестра ФАП с.Чалпы ",12,62,"Мухаметшин Альянус Мияссарович- Глава Чалпинского СП. Хакимова Эльмира Хазиевна- медсестра ФАП с.Чалпы. Гаффарова Рузалия Масгутовна- медсестра ФАП с.Чалпы ",3,3]
["СОШ с.Чубар-Абдуллово",20,7,11,10,10,5,10,10,10,3,2,{"$nulls":6},1,10,29,null,4,15,0,5,22]
["СОШ с.Мальбагуш",22,11,11,11,11,11,11,22,2,4,4,1,2,1,1,1,1,1,1,50,"нет",1,12,"нет",1,50,"нет",0,0]
["ООШ с.Б.Сухояш",3,1,1,1,2,1,1,1,1,2,1,0,0,1,0,0,0,0,0,0,0,1,21,0,1,21,0,1,1]
[null,{"$f":"SUM(B6:B28)","v":473},315,194,239,296,221,206,281,130,163,87,76,67,126,106,48,78,97,176,4247,null,{"$f":"SUM(W6:W28)","v":83},{"$f":"SUM(X6:X28)","v":2715},null,{"$f":"SUM(Z6:Z28)","v":116},{"$f":"SUM(AA6:AA28)","v":3572},{"$f":"SUM(AB6:AB28)","v":0},{"$f":"SUM(AC6:AC28)","v":9},{"$f":"SUM(AD6:AD28)","v":6}]

{"sheet":"Лист2","index":1,"n_rows":28,"n_cols":8,"rows_kept":28}
[{"$nulls":5},"Работа  с детьми \"группы  риска\""]
[{"$nulls":6},"отчет за 3 четверть "]
[null,"кол-во детей на учете ПДН","из них поставлены на учет в 3 четверти","кол-во детей на ВШУ","из них поставлены на учет в 3 четверти","кол-во детей из семей СОП","пофамильно  указать  в каких соревнованиях, конкурсах, общественных объединениях (волонтеры, юнармия, смс-дети и т.д) дети этих категорий принимали участие  в течение 3 четверти . Какие кружки в школе и вне школы посещают","количество проведенных советов профилактики за 3 четверть"]
["Школа"]
["СОШ №1 г.Азнакаево",1,1,12,2,4,"Гырхиев Элнур посещает кружок \"Ритм\" (хореография),консультации по предметам в МБОУ «СОШ№1». Садыков Ранис   посещает группу продленого дня в школе.Нургалиев Данир посещает кружки волейбол («Лигабол»)в МБОУ «СОШ №1»  и греко-римская борьба в с\\к \"Юбилейный\".Мусаллимов Эмиль посещает кружок  волейбол («Лигабол»)в МБОУ «СОШ №1», состоит в тимуровском отряде, участвовал вв поздравлении с 8 марта ветерана труда. Латифуллин Ислам посещает баскетбол в школе, является членом \"Юннармии\", участвовал в открытии мемориальной доски в школе.Ахматханов Раиль  посещает кружок “Белая ладья»,группу продленного дня в МБОУ «СОШ №1».\nХамидуллин Ислам посещает кружок \"Белая ладья\", является членом школьной шахматной команды.Занял  2 место вшкольном турнире,участвовал в турнире Армстрерлингу среди юношей,занял 1 место,участвовал в районным КВЕСТе, посвященный м\\н дню добровольцев.Хазипов Раиль посещает кружок \"Школьный юный правовод\", \"Семьведение\" в школе,участвовал в районнй стрельбе среди юношей, 2 место. Фахретдинов Радмир посещает кружок \"Белая ладья\" в школе.Рудь Родион посещает кружки \"Ритм\", консультации в школе.Гараев Камиль посещает конькобежный спорт в \"Ледовом дворце\", посещает ГПД.Юнысов Раяз посещает кружок \"Белая ладья\", посещает ГПД.",6]
["СОШ №2 г.Азнакаево",0,0,0,0,1,"Карпов Ярослав (посещает кружок Дорожная азбука, уроки здоровья); Алчинова Амалия,Хайруллина Аделина(\"Эрудит\" по окружающему миру,анг.языку),Шакирзянова Эвелина; Тазиева Элеонора участвовала в Республиканском конкурсе рисунков \"Эко-комиксы\",2 место; Ганеев А Харисов Д (у войны не женское лицо); Шаяхметов ЦДТ, гитара; автомоделирование; Хасанова Д. ДШИ; Хасанова Р. Дом.обучение; Хусаинова Г. Спортсекция; Ашрапова Э. -театральный, Ахметзянов К нет, Галлямов Р. нет",10]
["СОШ №3 г.Азнакаево",3,0,3,0,2,"Точина Зарина- ЮИД(во всех конурсах и мероприятиях этой направленности),Акробатика «Бусидо»  Точин Мухаммет - шахмтный кружок от ЦДТ , участие на мерприятия \"Туган теллэр - ил байлыгы\"",2]
["Лицей №4 г.Азнакаево"]
["СОШ №5 г.Азнакаево"]
["СОШ №6  г.Азнакаево"]
["СОШ №7 г.Азнакаево"]
["СОШ №8 г.Азнакаево",2,0,3,0,1,"Фазлыев З. и Шарапов И. - члены СД \"Искра\",участвовали в акции по сбору макулатуры, Гилязов В. - член отряда юнармия, участвовал в школьный акциях \"День вежливости\", конкурсе \"Один день из жизни моего отряда\". Шарапов И. посещает кружок \"Корэш\", Фазлые З. бокс, Гилязов В.-хоккей в Ледовом дворце.",2]
["СОШ №9 г.Азнакаево",0,0,6,1,1,"Тимганов-соревнования по лыжам, посещает кружки хоккея и бокса. Исхаков посещает крружок математики. Арсланов Ильдар посещет кружок борьбы на поясах.  Залилов посещает кружок \"Калейдоскоп наук\". Хуснутдинов посещает кружок легкой атлетики. Нигимаев и остальные учащиеся принимали участие в школьных мероприятиях \"Биатлон\", \"Смотр строя и песни\", \"Зарница\" и т.д.",1]
["Гимназия г.Азнакаево",0,0,1,0,0,"Посещает школу искусств,  художественое отделение, получает дополнительное образование по ПДД в объединении «Светофорик».\nПриняла участие:\n- муниципальном конкурсе проектов с исследовательской работой «Наши деды – фронтовики»;\n- акция «Миска добра»;\n- активный отдых с классом и родителями на лыжной базе;\n- акция «Ребенок – главный пассажир»;\n-  выступление перед дошколятами д/с №15 \n - открытие Года родного языка (на школьном и городском уровне).\n",1]
["СОШ №1 пгт.Актюбинский"]
["СОШ №2 пгт.Актюбинский",0,0,6,0,3,"Хабеев , Сабуров, Аваканян- соревнования по баскетболу и смотр строя и песни, Хабеев шахматный тернир, Арсеньев -конкурс патриотической песни, музыкальное поздравление учителям к 8 марта. Байкин - записался в шахматный кружок пока только обучается игре, занял 3 место в конкурсе плакатов к 8 марта. Шарифуллин -соревнования по гиревому спорту, смотр строя и песни, распространение поздравительных листовок с 23 февраля ",1]
["СОШ №3 пгт.Актюбинский"]
["СОШ п.Победа"]
["СОШ с.Какре Елга",0,0,3,0,1,"1)Насретдинов Айнур(ВШУ) - посещает консультации по предметам,участвовал в школьном этапе ШВЛ  2)Гарипов Радель(ВШУ) - посещает кружок \"Основы лидерства\",личное 1 место на соревнованиях по лыжным гонкам \"Смешанная эстафета\",командное 3-е место в Открытии лыжного сезона,3-е место на кустовом этапе ШВЛ   3)Зубайдуллина Ираида(СОП) - посещает кужок ЮИД,сертификат участника Республиканской олимпиады для школьников 1-5 классов \"ЛИМон\",сертификат участника Республиканской олимпиады для школьников 1-6 классов по окружающему миру.",1]
["СОШ с.Сарлы",0,0,0,0,0,0,1]
["СОШ с.Тумутук",2,0,6,0,1,"Газизов И.(ВШУ), Мухаметгараев А.(СОП), Назмутдинов А.(КДН)-посещают школьный кружок спортигры. Газизов И(ВШУ)., Мухаметгараев А.(СОП)- участвовали в ШВЛ; Хамзин А.(ВШУ), Мухаметгараев А(СОП).- участвовали в соревнованиях по настольному теннису; Газизов И(ВШУ), Хамзин М(ВШУ), - участвовали в соревнованиях по шахматам; Назмутдинов А(КДН), Газизов И(ВШУ), Хамзин М(ВШУ). - участвовали в соревнованиях по лыжным гонкам. Назмутдинов Р. 3 кл(КДН) -участвовал во всех школьных конкурсах рисунков и мероприятиях.",3]
["СОШ с.Урманаево"]
["СОШ с.Урсаево"]
["СОШ с. Чалпы",0,0,3,0,0,"Григорьев Виталий, в отряде экологов \"Юный эколог\", посещает объединение ДОД Волейбол\", участвовал в муниципальных и школьных лыжных соревнованиях,  школьных соревнованиях по робототехники.  Газизуллин Азамат, в отряде экологов \"Юный эколог\", посещает объединение ДОД Волейбол\", участвовал в муниципальных и школьных лыжных соревнованиях,  школьных соревнованиях по робототехники. Клопов Алексей, в отряде экологов \"Юный эколог\", посещает объединение ДОД Волейбол\", участвовал в муниципальных и школьных лыжных соревнованиях,  школьных соревнованиях по робототехники.                                                                                                                                                      ",3]
["СОШ с.Чубар-Абдуллово",0,0,3,0,2,"Все дети участвовали на муниципальном семинаре «Шушы яктан шушы туфрактан без», который проходил в школе; Мингазов Риназ \"Сэлэт\"(ансамбль); Хаертдинова Гульгена - \"Умелые ручки\", \"Веселые старты\", участие в олимпиаде «Учу татарский(победитель) ;    Хаертдинова Гулина - \"Сэлэт\" (ансамбль), \"Веселые старты\"; Муниципальный этап конкурса стихов Г.Тукая.",2]
["СОШ с.Мальбагуш"]
["ООШ с.Б.Сухояш",0,0,1,0,0,"Гиздатуллин Эмиль, посещает кружок Волейбол, участвовал : в военно-патриотической игре Зарница;  в мероприятии открытия шахматной зоны;  в флешмобе к 8 Марта; являясь членом тимуровского отряда посещал пожилых и оказывал им  помощь",1]
["итого",{"$f":"SUM(B5:B27)","v":8},{"$f":"SUM(C5:C27)","v":1},{"$f":"SUM(D5:D27)","v":47},{"$f":"SUM(E5:E27)","v":3},{"$f":"SUM(F5:F27)","v":16},null,{"$f":"SUM(H5:H27)","v":34}]

{"sheet":"Лист3","index":2,"n_rows":0,"n_cols":0,"rows_kept":0}

{"sheet":"Лист4","index":3,"n_rows":0,"n_cols":0,"rows_kept":0}